bitfinex/quotes_ETHUSD_20260207
["timestamp","ask_amount","ask_price","bid_price","bid_amount"]
[1770455143217,2.54782728,2023.5,2022.4,0.90301502]
[1770455143390,1.64426391,2023.5,2022.4,0.90301502]
[1770455144124,0.34985357,2023.5,2022.6,0.90301502]
[1770455144920,1.58534207,2023.5,2022.6,0.90301502]
[1770455145099,2.29695959,2023.5,2022.6,0.90301502]
[1770455145599,0.90356337,2023.4,2022.5,1.23609394]
[1770455145798,0.05891016,2023.2,2022.5,1.23609394]
[1770455146210,0.05891016,2023.2,2022.4,4.94437577]
[1770455146411,0.05891016,2023.1,2022.3,1.94461717]
[1770455146713,0.77297925,2023.1,2022.3,1.23617701]
[1770455147296,0.71406909,2023.1,2022.3,1.23617701]
[1770455147699,1.61763246,2023.1,2022.3,1.23621051]
[1770455149203,2.85336542,2023.1,2022.1,4.94534703]
[1770455149512,0.002,2022.9,2022.1,4.94534703]
[1770455149714,0.002,2022.9,2022.2,0.70847005]
[1770455152118,0.002,2022.9,2022.3,1.23621618]
[1770455157229,0.90556337,2022.9,2022.3,1.23621618]
[1770455157425,0.96447353,2022.9,2022.3,1.23621618]
[1770455157611,0.002,2022.9,2022.3,1.23621618]
[1770455157813,0.002,2022.9,2022.2,1.94471272]
[1770455160427,0.002,2022.9,2022.3,0.90301502]
[1770455161775,0.002,2023.1,2022.6,0.90301502]
[1770455162235,0.002,2023.1,2022.8,0.90301502]
[1770455162417,0.002,2023.1,2022.7,1.23597172]
[1770455162733,0.002,2023.1,2022.8,1.52100088]
[1770455162940,0.002,2022.9,2022.8,0.61798586]
[1770455163631,0.002,2022.9,2022.5,1.23605968]
[1770455164131,0.002,2022.9,2022.4,0.001]
[1770455164840,0.06091016,2022.9,2022.4,0.001]
[1770455165459,0.90356337,2022.6,2021.9,1.23645891]
[1770455165660,0.96247353,2022.5,2021.9,0.002]
[1770455165954,0.90356337,2022.5,2021.9,0.002]
[1770455166140,0.05891016,2022.4,2021.9,0.002]
[1770455166768,2.13970533,2022.5,2021.9,0.002]
[1770455167057,2.19861549,2022.5,2021.9,0.002]
[1770455167362,0.71428164,2022.4,2021.9,0.002]
[1770455167746,0.05891016,2022.2,2021.5,2.53778194]
[1770455167947,0.9177565,2022.2,2021.5,3.77448618]
[1770455168126,0.05891016,2022.0,2021.5,2.53778194]
[1770455168330,0.05891016,2022.0,2021.5,0.001]
[1770455168331,1.23646075,2021.9,2021.5,0.001]
[1770455168535,0.62411377,2021.8,2021.5,0.001]
[1770455169643,1.23646075,2021.9,2021.5,0.001]
[1770455170362,1.29537091,2021.9,2021.5,0.001]
[1770455170661,4.94544199,2022.1,2021.5,0.001]
[1770455170830,1.29512634,2022.3,2021.5,0.001]
[1770455171233,1.53007017,2022.2,2021.5,0.001]
[1770455171545,0.62399911,2022.2,2021.5,0.001]
[1770455171859,0.96498122,2022.4,2021.5,0.001]
[1770455172035,0.90607106,2022.4,2021.5,0.001]
[1770455172826,2.14223129,2022.4,2021.5,1.23770541]
[1770455173642,0.90607106,2022.4,2021.5,1.23770541]
[1770455173859,1.29504626,2022.5,2021.5,1.23770541]
[1770455174054,0.62392826,2022.4,2021.6,0.71254869]
[1770455174436,2.35099672,2022.8,2021.7,0.94095982]
[1770455174637,0.05891016,2022.7,2021.7,0.94095982]
[1770455174838,0.90607106,2022.5,2021.6,1.94915763]
[1770455175068,0.05891016,2022.4,2021.6,1.94915763]
[1770455175475,0.05891016,2022.4,2021.7,0.001]
[1770455175853,0.002,2022.3,2021.7,0.001]
[1770455176366,0.90807106,2022.3,2021.7,0.001]
[1770455176746,1.23627732,2022.2,2021.7,0.001]
[1770455177067,0.70894577,2022.1,2021.7,0.001]
[1770455177285,0.002,2022.3,2021.7,0.001]
[1770455178037,1.23822005,2022.3,2021.7,0.001]
[1770455178247,0.002,2022.3,2021.7,0.001]
[1770455178537,2.1442885,2022.3,2021.7,0.001]
[1770455179370,0.90807106,2022.3,2021.7,0.001]
[1770455179574,0.002,2022.3,2021.7,0.001]
[1770455179760,0.002,2022.3,2021.7,0.94195982]
[1770455180155,0.002,2022.5,2021.8,0.94095982]
[1770455181351,0.002,2022.5,2022.2,0.94095982]
[1770455181658,0.002,2022.9,2022.2,0.94095982]
[1770455182477,0.002,2022.9,2022.3,0.94095982]
[1770455182643,0.002,2022.9,2022.4,1.20306159]
[1770455182969,0.002,2022.9,2022.2,0.94095982]
[1770455183172,0.002,2022.9,2022.3,0.94095982]
[1770455183560,0.002,2022.9,2022.5,0.94095982]
[1770455184359,0.002,2023.1,2022.6,0.94095982]
[1770455184672,0.3422417,2023.3,2022.6,0.94095982]
[1770455184897,0.3422417,2023.3,2022.8,0.94095982]
[1770455185047,0.3422417,2023.3,2022.7,2.23764467]
[1770455185357,0.002,2023.4,2022.7,0.94095982]
[1770455185557,0.002,2023.4,2022.8,2.17687043]
[1770455185760,0.002,2023.4,2022.9,0.94095982]
[1770455187483,0.002,2023.8,2023.1,0.94095982]
[1770455187648,0.002,2023.8,2023.3,0.94095982]
[1770455188264,0.002,2023.8,2023.3,0.71192912]
[1770455189963,0.002,2023.8,2023.3,1.94749183]
[1770455190781,0.002,2023.8,2023.3,1.23556271]
[1770455191762,0.002,2023.8,2022.8,4.94362475]
[1770455196699,0.002,2023.8,2022.9,0.93973299]
[1770455197073,0.002,2023.8,2022.8,4.94362475]
[1770455197276,0.002,2023.8,2022.8,5.88335774]
[1770455197601,0.002,2023.8,2022.9,0.71192684]
[1770455197995,0.002,2023.8,2022.9,1.65165983]
[1770455198502,0.9717775,2023.6,2022.9,1.94773219]
[1770455200103,0.91286734,2023.6,2022.7,4.9438]
[1770455200301,0.91286734,2023.6,2022.8,1.23589401]
[1770455200504,0.91286734,2023.4,2022.2,4.94503617]
[1770455201375,0.91286734,2023.4,2023.0,0.001]
[1770455201572,0.91286734,2023.4,2022.2,4.94503617]
[1770455201777,0.91286734,2023.1,2022.3,0.61813135]
[1770455202096,0.91286734,2023.1,2022.8,0.001]
[1770455202498,2.14862165,2023.1,2022.4,1.23615506]
[1770455203207,0.91286734,2023.0,2022.3,1.85430376]
[1770455203395,0.91286734,2023.0,2022.3,1.23617241]
[1770455203920,0.91286734,2023.0,2022.2,1.23627232]
[1770455204219,0.91286734,2023.0,2022.1,4.94533513]
[1770455204430,0.91286734,2022.6,2022.0,0.001]
[1770455204719,1.62212594,2022.6,2022.0,0.001]
[1770455205514,0.91286734,2022.5,2022.0,0.001]
[1770455205720,0.91286734,2022.3,2021.9,0.001]
[1770455205920,0.91286734,2022.2,2021.9,0.001]
[1770455207722,2.1491476,2022.2,2021.9,0.001]
[1770455207906,0.91286734,2022.2,2021.9,0.001]
[1770455208104,0.91286734,2022.8,2021.9,0.001]
[1770455208289,2.14859789,2023.1,2021.9,12.96662169]
[1770455208492,0.91286734,2023.0,2021.9,0.001]
[1770455208682,0.91286734,2022.8,2021.9,0.001]
[1770455209082,2.14859789,2023.1,2021.9,0.94073299]
[1770455209281,2.86363963,2023.1,2021.9,0.94073299]
[1770455209682,1.23564252,2023.3,2022.1,0.93973299]
[1770455209906,0.91286734,2023.2,2022.0,1.2363996]
[1770455211106,0.91286734,2023.2,2022.0,2.17613259]
[1770455211312,0.91286734,2023.2,2022.1,0.93973299]
[1770455211693,1.23554413,2023.4,2022.2,2.17601031]
[1770455211995,1.96091941,2023.4,2022.3,0.71211196]
[1770455213291,0.72537528,2023.4,2022.3,0.71211196]
[1770455213495,0.91286734,2023.5,2022.3,1.65184495]
[1770455213682,2.14835444,2023.5,2022.4,2.17588805]
[1770455214089,0.002,2023.6,2022.4,2.17588805]
[1770455214344,0.002,2023.6,2022.5,0.93973299]
[1770455214519,1.23747441,2023.6,2022.5,0.93973299]
[1770455214997,2.86563046,2023.6,2022.5,0.93973299]
[1770455215382,0.91486734,2023.6,2022.5,0.93973299]
[1770455215806,0.91486734,2023.6,2022.6,1.23603282]
[1770455216017,1.29221859,2023.7,2022.6,2.17576581]
[1770455217317,1.23330843,2023.7,2022.6,2.17576581]
[1770455217508,1.23732724,2023.8,2022.6,2.17576581]
[1770455217835,0.91486734,2023.8,2022.9,1.23584952]
[1770455218131,0.9717775,2023.7,2022.8,1.23587497]
[1770455218443,0.9717775,2023.4,2022.7,0.71198971]
[1770455218592,0.9717775,2023.1,2022.2,0.001]
[1770455218786,0.9717775,2023.1,2022.4,1.23614434]
[1770455218787,0.91286734,2023.1,2022.4,1.23614434]
[1770455218984,0.05891016,2023.0,2022.4,1.23614434]
[1770455219188,0.9717775,2023.0,2022.2,1.2372408]
[1770455219412,0.9717775,2023.0,2022.3,1.23621195]
[1770455219613,0.05891016,2022.9,2022.2,0.001]
[1770455219797,1.2358957,2022.9,2022.2,0.001]
[1770455220198,2.2076732,2022.9,2022.2,0.001]
[1770455220412,0.71509664,2022.8,2022.2,0.001]
[1770455221019,1.23578843,2023.0,2022.2,0.001]
[1770455221193,0.91286734,2022.9,2022.2,0.001]
[1770455221591,0.1024,2023.5,2022.9,0.93973299]
[1770455221849,0.2355703,2024.0,2023.3,0.93973299]
[1770455221850,0.002,2024.0,2023.3,0.93973299]
[1770455222126,0.002,2024.6,2023.7,0.93973299]
[1770455222291,0.1024,2024.4,2023.7,0.93973299]
[1770455222489,0.1024,2024.4,2023.4,2.23629516]
[1770455222490,0.09667,2024.4,2023.4,2.23629516]
[1770455222907,0.09667,2024.4,2023.5,0.93973299]
[1770455223228,0.9717775,2024.3,2023.4,1.29656217]
[1770455223426,0.9717775,2024.3,2023.0,1.23578843]
[1770455223729,2.20683031,2024.3,2023.0,1.23578843]
[1770455224035,1.29572559,2024.6,2023.1,0.93973299]
[1770455224239,0.002,2024.6,2023.1,0.93973299]
[1770455224891,0.05891016,2024.4,2023.1,0.93973299]
[1770455225418,0.05891016,2024.1,2023.1,0.93973299]
[1770455225633,0.9717775,2024.4,2023.1,0.93973299]
[1770455225831,0.05891016,2024.1,2023.2,1.23566627]
[1770455226143,2.20675147,2024.4,2023.3,0.61783314]
[1770455226714,0.002,2024.2,2023.3,0.61783314]
[1770455228812,0.002,2024.2,2023.4,1.23554413]
[1770455230323,0.002,2024.2,2023.4,2.14398115]
[1770455230942,0.002,2024.2,2023.5,0.90843702]
[1770455233248,0.002,2024.2,2023.3,0.61783314]
[1770455233249,0.98803837,2024.1,2023.3,0.61783314]
[1770455233450,0.002,2024.2,2023.3,1.23559725]
[1770455233619,0.002,2024.2,2023.3,1.25566597]
[1770455234233,0.002,2024.2,2023.4,0.90843702]
[1770455234549,0.002,2024.2,2023.5,0.92850375]
[1770455235043,0.002,2024.2,2023.4,0.02006674]
[1770455235341,0.002,2024.2,2023.0,1.23576209]
[1770455235342,2.16430607,2024.0,2023.0,1.23576209]
[1770455235544,0.002,2024.2,2023.1,0.61789821]
[1770455236044,1.23706635,2024.2,2023.1,0.61789821]
[1770455237751,0.05891016,2024.1,2023.2,1.23566627]
[1770455237914,1.23706635,2024.2,2023.2,1.23566627]
[1770455238120,0.76953724,2024.1,2023.3,0.67962296]
[1770455238548,1.69866545,2024.1,2023.1,1.85358406]
[1770455238745,1.69866545,2024.1,2023.3,0.001]
[1770455238949,0.98803837,2023.8,2022.3,0.90843702]
[1770455239123,0.05891016,2023.5,2023.0,0.001]
[1770455240044,1.29427113,2023.7,2023.0,0.001]
[1770455241849,0.05891016,2023.4,2022.4,4.94459158]
[1770455242058,1.23560519,2023.3,2022.5,0.61807466]
[1770455242229,1.23560519,2023.3,2022.4,1.23615506]
[1770455242431,1.23560519,2023.3,2022.4,1.23614863]
[1770455242954,2.1647334,2023.3,2022.5,1.23607032]
[1770455243250,2.22364356,2023.3,2022.5,1.23607032]
[1770455243450,0.71660644,2023.2,2022.5,1.85413581]
[1770455244258,0.7164633,2023.6,2022.6,0.90843702]
[1770455244555,1.23540628,2023.7,2022.6,0.90843702]
[1770455245326,1.23528161,2023.9,2022.6,0.90843702]
[1770455245524,1.23517786,2024.0,2022.7,0.90843702]
[1770455245727,1.94578564,2024.1,2022.7,0.90843702]
[1770455246029,2.0046958,2024.1,2022.7,0.90843702]
[1770455246222,0.98803837,2023.9,2022.8,2.43630687]
[1770455247222,0.78761922,2024.0,2022.8,2.43630687]
[1770455247446,0.78761922,2024.0,2022.8,3.34474389]
[1770455248341,0.002,2024.2,2022.9,0.90843702]
[1770455248651,1.23706619,2024.2,2023.0,0.90843702]
[1770455248856,0.98803837,2024.1,2022.8,2.43630687]
[1770455249057,0.98803837,2024.1,2022.9,0.82883864]
[1770455250662,1.23517786,2024.0,2023.0,1.23678843]
[1770455251167,0.002,2023.8,2023.0,1.23678843]
[1770455251699,0.002,2023.8,2023.0,2.14522545]
[1770455251999,0.002,2023.8,2023.1,0.90843702]
[1770455252970,0.002,2023.8,2023.2,2.14410329]
[1770455253178,0.002,2023.8,2023.4,0.90843702]
[1770455253518,0.45912405,2026.3,2023.4,0.90843702]
[1770455253519,0.002,2025.6,2024.8,0.90843702]
[1770455253790,0.002,2025.9,2025.8,0.90843702]
[1770455253976,0.002,2026.1,2025.9,0.90843702]
[1770455254174,1.23327758,2027.2,2025.7,11.35349096]
[1770455254175,0.05891016,2027.1,2026.1,0.90843702]
[1770455254357,0.002,2027.4,2026.2,2.10883328]
[1770455254546,0.002,2027.4,2026.3,11.09552563]
[1770455254747,0.002,2027.4,2026.2,2.10883328]
[1770455254748,0.05891016,2026.9,2026.2,1.20039626]
[1770455254953,0.05891016,2027.2,2026.3,1.23377584]
[1770455255187,0.002,2027.0,2026.3,1.23377584]
[1770455257067,0.002,2027.0,2026.2,4.93510339]
[1770455257286,0.002,2027.0,2026.4,0.99062971]
[1770455257476,0.002,2027.0,2026.5,1.09302971]
[1770455257782,0.002,2027.4,2026.5,1.09302971]
[1770455257988,0.002,2027.4,2026.6,0.99062971]
[1770455258153,0.002,2027.4,2026.2,5.9257331]
[1770455258154,0.05891016,2027.3,2026.2,5.9257331]
[1770455258353,0.05891016,2027.3,2026.3,0.71595698]
[1770455258662,0.05891016,2027.0,2026.3,0.71595698]
[1770455259263,1.2922704,2027.0,2026.2,1.23382135]
[1770455259517,11.15443579,2027.3,2026.2,1.23382135]
[1770455259518,1.29210274,2027.3,2026.3,1.23376851]
[1770455259689,0.92157396,2027.4,2026.3,1.23376851]
[1770455259690,0.002,2027.4,2026.3,1.23376851]
[1770455260513,0.05891016,2027.3,2026.3,2.22439822]
[1770455260687,0.002,2027.4,2026.3,2.22439822]
[1770455260891,0.05891016,2027.3,2026.4,0.71595224]
[1770455261203,0.05891016,2027.0,2026.3,1.23376851]
[1770455261399,0.05891016,2027.3,2026.0,4.93575131]
[1770455261710,1.29209248,2027.3,2026.0,4.93575131]
[1770455262088,0.05891016,2027.0,2026.0,4.93575131]
[1770455262293,1.29208394,2027.3,2026.0,4.93575131]
[1770455262612,0.05891016,2027.0,2025.9,1.23398074]
[1770455262815,0.05891016,2027.1,2025.9,1.23398074]
[1770455263512,0.05891016,2026.8,2025.8,4.93607779]
[1770455263811,1.29224268,2027.1,2026.5,0.001]
[1770455263984,0.002,2026.8,2026.5,0.001]
[1770455265916,0.002,2027.0,2026.5,0.001]
[1770455266784,0.05891016,2026.9,2026.5,0.001]
[1770455267489,0.05891016,2026.6,2026.5,0.001]
[1770455267890,0.002,2027.0,2026.5,0.001]
[1770455268093,0.05891016,2026.9,2026.5,0.001]
[1770455272007,0.05891016,2026.9,2026.3,0.001]
[1770455272008,1.29233156,2026.9,2026.3,0.001]
[1770455272220,0.05891016,2026.6,2026.3,0.001]
[1770455272421,1.29250681,2026.6,2026.3,0.001]
[1770455272901,0.05891016,2026.6,2026.3,0.001]
[1770455273214,0.62263746,2026.6,2026.3,0.001]
[1770455273422,1.29238148,2026.9,2026.3,0.001]
[1770455274812,0.05891016,2026.9,2026.3,0.001]
[1770455275013,0.002,2027.0,2026.3,0.001]
[1770455275304,0.05891016,2026.9,2026.3,0.001]
[1770455276497,0.05891016,2026.9,2026.5,0.001]
[1770455276703,0.002,2026.7,2026.5,0.001]
[1770455280638,0.97848412,2027.2,2026.5,0.001]
[1770455280639,0.002,2027.4,2026.6,0.99062971]
[1770455280827,0.006,2027.3,2026.6,0.99062971]
[1770455281335,0.006,2027.3,2026.8,1.23347148]
[1770455281906,0.002,2027.4,2026.7,2.97111194]
[1770455282137,0.006,2027.2,2026.7,2.97111194]
[1770455282309,0.006,2027.2,2026.7,1.23350776]
[1770455282512,0.006,2027.2,2026.7,2.11465814]
[1770455286015,0.002,2027.4,2026.8,0.97417486]
[1770455288140,0.002,2027.4,2026.9,1.23341062]
[1770455288340,0.008,2027.4,2026.9,1.23341062]
[1770455288726,0.002,2027.0,2026.9,1.23341062]
[1770455288926,0.002,2027.4,2026.9,2.52913964]
[1770455289145,0.002,2027.4,2026.7,0.88215038]
[1770455289146,0.002,2027.2,2026.7,0.88215038]
[1770455289442,0.002,2027.2,2026.7,0.001]
[1770455289643,0.006,2027.1,2026.7,0.001]
[1770455290243,0.002,2027.2,2026.7,0.001]
[1770455290545,0.006,2027.1,2026.7,0.001]
[1770455294134,0.05891016,2027.0,2026.7,0.001]
[1770455294523,0.006,2026.9,2026.7,0.001]
[1770455294722,0.006,2027.1,2026.7,0.001]
[1770455295053,0.62928562,2027.1,2026.7,0.001]
[1770455296847,0.62928562,2027.1,2026.5,0.001]
[1770455296848,1.29225993,2027.0,2026.5,0.001]
[1770455297148,2.21760906,2027.0,2026.3,0.001]
[1770455297746,0.05891016,2026.7,2026.3,0.001]
[1770455297962,0.05891016,2026.4,2025.7,1.23408602]
[1770455298131,11.09552563,2026.9,2025.6,0.99489004]
[1770455298132,0.005,2026.6,2025.6,0.99489004]
[1770455298323,0.005,2026.8,2026.0,1.23395655]
[1770455298520,0.05891016,2026.7,2026.0,1.23395655]
[1770455298747,0.005,2026.8,2026.0,1.23395655]
[1770455298949,1.29247433,2026.7,2025.8,1.23408036]
[1770455299155,0.6231372,2026.6,2025.8,2.44426605]
[1770455299358,0.6231372,2026.6,2025.6,0.001]
[1770455299359,0.05891016,2026.1,2025.6,0.001]
[1770455299536,0.92034913,2026.3,2025.6,1.23519916]
[1770455299735,0.05891016,2026.2,2025.6,0.001]
[1770455300127,0.005,2026.1,2025.6,0.001]
[1770455301045,0.05891016,2025.9,2025.6,0.001]
[1770455301353,0.005,2026.1,2025.6,0.001]
[1770455301553,0.72032513,2026.1,2025.6,0.001]
[1770455301767,0.05891016,2025.9,2025.6,0.001]
[1770455302178,0.005,2025.8,2025.6,0.001]
[1770455302464,0.005,2026.0,2025.6,0.001]
[1770455302864,0.05891016,2025.9,2025.6,0.001]
[1770455303326,0.005,2026.0,2025.6,0.001]
[1770455303952,1.23896174,2026.0,2025.6,0.001]
[1770455304257,0.69487972,2025.9,2025.6,0.001]
[1770455304553,0.005,2026.0,2025.6,0.001]
[1770455305344,0.92034913,2026.7,2025.6,0.99489004]
[1770455305685,0.05891016,2026.2,2025.6,0.001]
[1770455305828,0.97925929,2026.5,2025.6,0.001]
[1770455306180,0.05891016,2026.5,2025.6,0.001]
[1770455306474,0.05891016,2026.2,2025.6,0.001]
[1770455306677,0.97925929,2026.5,2025.6,0.001]
[1770455306849,0.05891016,2026.2,2025.6,0.001]
[1770455309157,1.23374046,2026.4,2025.6,0.001]
[1770455309354,0.05891016,2026.3,2025.6,0.001]
[1770455309662,0.05891016,2026.0,2025.6,0.001]
[1770455311635,1.23401944,2025.9,2025.6,0.001]
[1770455311870,1.85689435,2025.9,2025.6,0.001]
[1770455313347,1.85689435,2025.9,2025.8,0.001]
[1770455313559,1.85889435,2025.9,2025.8,0.001]
[1770455315972,0.002,2025.9,2025.6,0.001]
[1770455319170,0.002,2025.9,2025.4,0.001]
[1770455319171,0.05891016,2025.7,2025.4,0.001]
[1770455319783,0.05891016,2025.7,2025.0,8.48681022]
[1770455320665,0.05891016,2025.7,2025.0,9.72134069]
[1770455320985,0.05891016,2025.7,2025.0,11.2790288]
[1770455321150,1.2360551,2025.9,2025.0,12.19608763]
[1770455321353,1.2360551,2025.9,2025.1,0.91705883]
[1770455321575,0.002,2025.9,2025.1,0.91705883]
[1770455323372,0.002,2025.9,2025.2,1.23444598]
[1770455323573,0.002,2025.9,2025.3,0.70894227]
[1770455324177,0.002,2025.9,2025.4,0.91705883]
[1770455325484,0.002,2025.9,2025.5,1.23426314]
[1770455326569,0.002,2025.7,2025.5,1.23426314]
[1770455329703,0.002,2025.7,2025.4,0.001]
[1770455330971,0.05891016,2025.5,2025.4,0.001]
[1770455331786,1.2931733,2025.5,2025.4,0.001]
[1770455332088,1.91637213,2025.5,2025.4,0.001]
[1770455332287,1.91637213,2025.5,2025.2,0.001]
[1770455335616,0.002,2025.7,2025.2,0.001]
[1770455335989,0.06091016,2025.7,2025.2,0.001]
[1770455337898,0.002,2025.7,2025.2,0.001]
[1770455338109,0.002,2025.7,2025.2,0.91805883]
[1770455339498,0.002,2025.7,2025.4,0.91805883]
[1770455339905,0.002,2025.7,2025.4,0.001]
[1770455340511,0.002,2025.7,2025.2,1.21665735]
[1770455340707,0.002,2025.7,2025.2,2.77249958]
[1770455340924,0.002,2025.7,2025.3,0.91705883]
[1770455341908,0.002,2025.7,2025.1,1.23446785]
[1770455342215,0.05891016,2025.6,2025.1,1.23446785]
[1770455344115,0.05891016,2025.5,2025.0,9.72133065]
[1770455344315,1.23615072,2025.7,2025.0,11.2790104]
[1770455344619,0.05891016,2025.6,2025.0,11.2790104]
[1770455345131,0.002,2025.7,2025.0,12.19606923]
[1770455345425,0.002,2025.7,2025.1,0.91705883]
[1770455345630,0.05891016,2025.6,2025.0,11.2790104]
[1770455345996,0.68206254,2025.6,2025.0,11.2790104]
[1770455346201,0.68206254,2025.6,2025.0,11.2790527]
[1770455346402,0.05891016,2025.6,2025.0,11.2790527]
[1770455347738,0.002,2025.7,2025.0,11.2790527]
[1770455348042,0.05891016,2025.6,2025.0,11.2790527]
[1770455349805,1.29311237,2025.6,2025.0,10.04448997]
[1770455349999,1.29311237,2025.6,2025.0,9.72136422]
[1770455350201,0.05891016,2025.6,2025.0,9.72136422]
[1770455350504,0.05891016,2025.5,2025.0,8.48681022]
[1770455351341,0.05891016,2025.5,2025.2,0.001]
[1770455351637,0.002,2025.4,2025.2,0.001]
[1770455354944,0.002,2025.7,2025.2,0.001]
[1770455354945,0.002,2025.7,2025.2,0.91338058]
[1770455356431,0.002,2025.7,2025.3,1.23438502]
[1770455356638,0.002,2025.7,2025.4,0.70853057]
[1770455358838,0.002,2025.7,2025.4,1.94284418]
[1770455359809,0.002,2025.7,2025.4,0.70853057]
[1770455360007,0.05891016,2025.5,2025.2,0.001]
[1770455361330,2.22785097,2025.7,2025.2,0.001]
[1770455361510,0.05891016,2025.6,2025.2,0.001]
[1770455361907,0.002,2025.7,2025.2,0.001]
[1770455362107,0.72448545,2025.7,2025.2,0.001]
[1770455362936,0.002,2025.7,2025.2,0.91338058]
[1770455364646,0.002,2025.4,2025.2,0.91338058]
[1770455365034,0.002,2025.4,2025.2,0.001]
[1770455369957,1.0505774,2025.3,2025.0,0.001]
[1770455371348,0.002,2025.4,2025.1,0.001]
[1770455371850,0.002,2025.4,2025.2,0.001]
[1770455373046,0.002,2025.6,2025.2,0.70870584]
[1770455373241,0.002,2025.6,2025.3,0.001]
[1770455374021,0.002,2025.6,2025.3,1.23538502]
[1770455374551,0.002,2025.6,2025.3,0.001]
[1770455378128,0.002,2025.6,2025.3,1.23538502]
[1770455378327,0.002,2025.6,2025.4,0.001]
[1770455379424,0.002,2025.9,2025.5,0.001]
[1770455380022,1.05440622,2025.8,2025.5,0.001]
[1770455380250,1.29307258,2025.7,2025.2,0.001]
[1770455380553,1.29307258,2025.7,2025.2,0.003]
[1770455380757,2.01574681,2025.7,2025.2,0.003]
[1770455381240,0.78158439,2025.7,2025.2,0.003]
[1770455387059,1.95682925,2025.7,2025.2,0.003]
[1770455387272,0.002,2025.9,2025.2,0.97199737]
[1770455389058,0.002,2025.9,2025.4,0.96899737]
[1770455390551,0.002,2025.9,2025.4,0.96999737]
[1770455390756,0.002,2025.5,2025.4,0.96999737]
[1770455391063,0.002,2025.9,2025.4,0.96999737]
[1770455391064,0.002,2025.7,2025.5,2.20326051]
[1770455391368,0.002,2025.9,2025.6,0.71413131]
[1770455393039,0.002,2025.9,2025.7,1.23414128]
[1770455393643,0.002,2025.9,2025.8,0.97099737]
[1770455393844,0.002,2026.1,2025.8,0.97099737]
[1770455395443,0.002,2026.1,2025.9,1.23401944]
[1770455395649,0.002,2026.1,2025.9,1.9481289]
[1770455396855,0.002,2026.1,2026.0,0.002]
[1770455397243,0.002,2026.5,2026.0,0.96899737]
[1770455397775,0.002,2026.5,2026.1,1.23389763]
[1770455398442,0.002,2026.8,2026.3,0.96899737]
[1770455398642,0.002,2026.8,2026.1,2.202895]
[1770455398872,0.002,2026.8,2026.2,0.71384855]
[1770455399651,0.002,2026.8,2026.3,1.23377584]
[1770455400173,0.05891016,2026.5,2026.0,1.23391408]
[1770455400375,0.05891016,2026.5,2026.1,1.23389191]
[1770455401152,0.002,2026.8,2026.3,0.96899737]
[1770455401360,0.002,2026.8,2026.3,1.68281309]
[1770455401559,0.002,2026.8,2026.4,1.23371496]
[1770455402447,0.002,2026.8,2026.4,2.20271233]
[1770455402665,0.002,2026.8,2026.5,0.96899737]
[1770455403064,0.002,2026.6,2026.5,0.96899737]
[1770455403273,0.002,2026.8,2026.5,1.75413805]
[1770455404278,0.002,2027.0,2026.6,1.23359321]
[1770455406880,0.002,2027.0,2026.6,2.21304326]
[1770455409484,0.002,2027.0,2026.6,1.23359321]
[1770455410066,0.05891016,2026.5,2025.9,0.71410946]
[1770455410273,1.00218328,2026.6,2025.9,1.23401838]
[1770455410459,0.94327312,2026.6,2025.9,1.23401838]
[1770455410861,0.05891016,2026.5,2025.9,1.23401838]
[1770455411062,0.94327312,2026.8,2025.9,1.23401838]
[1770455411261,0.94327312,2026.8,2026.0,1.67610095]
[1770455411657,0.94327312,2026.8,2026.1,1.23389763]
[1770455411874,1.29236311,2026.9,2026.1,1.23389763]
[1770455412484,2.23563623,2026.9,2026.1,1.23389763]
[1770455414298,0.002,2027.0,2026.2,0.99042888]
[1770455414469,0.002,2027.0,2026.3,0.99042888]
[1770455414671,0.002,2027.0,2026.4,2.04951401]
[1770455415872,0.002,2026.8,2026.4,2.04951401]
[1770455416279,0.002,2026.8,2026.5,1.23365408]
[1770455418163,0.002,2026.8,2026.5,2.22408296]
[1770455419985,0.002,2026.8,2026.5,1.23365408]
[1770455420184,0.002,2026.8,2026.6,0.72273654]
[1770455420384,0.002,2026.8,2026.6,1.95627571]
[1770455422425,2.23730779,2027.4,2026.7,0.99042888]
[1770455422426,0.002,2027.4,2026.7,0.99042888]
[1770455422719,0.002,2027.4,2026.8,0.99042888]
[1770455422871,10.54369555,2027.3,2026.6,1.95627571]
[1770455423072,10.54369555,2027.3,2026.7,0.68907241]
[1770455423312,0.002,2027.4,2026.7,1.67950129]
[1770455423605,0.002,2027.4,2026.8,0.99042888]
[1770455424720,0.002,2027.4,2026.9,1.23341062]
[1770455424917,0.002,2027.4,2027.0,0.7157482]
[1770455425393,0.002,2027.4,2026.8,1.2334473]
[1770455427903,0.002,2027.4,2026.8,1.2344473]
[1770455428139,0.94327312,2027.3,2026.6,5.65662246]
[1770455428353,0.94327312,2027.3,2025.2,0.001]
[1770455428354,0.67306823,2025.8,2025.2,0.001]
[1770455428616,0.05891016,2025.9,2024.6,6.66349231]
[1770455428617,0.002,2024.9,2024.6,7.23620353]
[1770455428784,0.4537581,2026.2,2024.9,0.99042888]
[1770455428985,1.23363222,2026.6,2025.7,0.05891016]
[1770455429217,1.23363222,2026.6,2025.4,1.29319965]
[1770455429218,1.32308977,2025.8,2025.4,0.05891016]
[1770455429384,2.38033751,2025.7,2025.5,0.05891016]
[1770455429584,1.05847181,2025.6,2025.4,0.05891016]
[1770455429819,1.05105172,2025.5,2025.4,0.05891016]
[1770455430002,1.05105172,2025.5,2025.2,0.99042888]
[1770455430206,1.3218657,2025.7,2025.2,2.94706785]
[1770455430422,1.3218657,2025.7,2025.2,0.72220061]
[1770455430605,1.3218657,2025.5,2024.9,2.22503008]
[1770455430805,1.3218657,2025.5,2024.9,1.23462499]
[1770455431009,1.3218657,2025.4,2024.7,0.72372035]
[1770455431311,1.3218657,2025.4,2024.7,1.95846977]
[1770455431517,1.3218657,2025.2,2024.7,1.95846977]